lending/lending_fUSD_20240112
["ID","MTS","AMOUNT","RATE_DAILY","PERIOD"]
[311432807,1705098642729,-150.12,0.00033,2]
[311432809,1705098642738,-150.12,0.00033,2]
[311432811,1705098642749,-150.12,0.00033,2]
[311432813,1705098642760,-150.12,0.00033,2]
[311432815,1705098642769,-150.12,0.00033,2]
[311432817,1705098642779,-150.12,0.00033,2]
[311432819,1705098642791,-150.12,0.00033,2]
[311432820,1705098642802,-150.12,0.00033,2]
[311432822,1705098642813,-150.12,0.00033,2]
[311432825,1705098642824,-150.12,0.00033,2]
[311432828,1705098642833,-150.12,0.00033,2]
[311432830,1705098642843,-150.12,0.00033,2]
[311432832,1705098642853,-150.12,0.00033,2]
[311432834,1705098642863,-150.12,0.00033,2]
[311432836,1705098642873,-150.12,0.00033,2]
[311432838,1705098642883,-150.12,0.00033,2]
[311432842,1705098642893,-150.12,0.00033,2]
[311432845,1705098642903,-150.12,0.00033,2]
[311432847,1705098642913,-150.12,0.00033,2]
[311432849,1705098642923,-150.12,0.00033,2]
[311432851,1705098642934,-150.12,0.00033,2]
[311432853,1705098642944,-150.12,0.00033,2]
[311432855,1705098642955,-150.12,0.00033,2]
[311432857,1705098642965,-150.12,0.00033,2]
[311432858,1705098642977,-150.12,0.00033,2]
[311432859,1705098642987,-150.12,0.00033,2]
[311432860,1705098642997,-150.12,0.00033,2]
[311432861,1705098643007,-150.12,0.00033,2]
[311432862,1705098643019,-150.12,0.00033,2]
[311432863,1705098643030,-150.12,0.00033,2]
[311432864,1705098643039,-150.12,0.00033,2]
[311432865,1705098643050,-150.12,0.00033,2]
[311432866,1705098643060,-150.12,0.00033,2]
[311432867,1705098643072,-150.12,0.00033,2]
[311432868,1705098643082,-150.12,0.00033,2]
[311432869,1705098643092,-150.12,0.00033,2]
[311432870,1705098643101,-150.12,0.00033,2]
[311432871,1705098643111,-150.12,0.00033,2]
[311432872,1705098643121,-150.12,0.00033,2]
[311432873,1705098643131,-150.12,0.00033,2]
[311432874,1705098643141,-150.12,0.00033,2]
[311432875,1705098643151,-150.12,0.00033,2]
[311432876,1705098643161,-150.12,0.00033,2]
[311432877,1705098643170,-150.12,0.00033,2]
[311432878,1705098643180,-150.12,0.00033,2]
[311432879,1705098643189,-150.12,0.00033,2]
[311432880,1705098643198,-150.12,0.00033,2]
[311432881,1705098643209,-150.12,0.00033,2]
[311432882,1705098643218,-150.12,0.00033,2]
[311432883,1705098643228,-150.12,0.00033,2]
[311432884,1705098643238,-150.12,0.00033,2]
[311432885,1705098643247,-150.12,0.00033,2]
[311432886,1705098643257,-150.12,0.00033,2]
[311432887,1705098643266,-150.12,0.00033,2]
[311432888,1705098643276,-150.12,0.00033,2]
[311432889,1705098643285,-150.12,0.00033,2]
[311432890,1705098643295,-150.12,0.00033,2]
[311432891,1705098643304,-150.12,0.00033,2]
[311432892,1705098643316,-150.12,0.00033,2]
[311432893,1705098643325,-150.12,0.00033,2]
[311432894,1705098643336,-150.12,0.00033,2]
[311432895,1705098643346,-150.12,0.00033,2]
[311432896,1705098643357,-150.12,0.00033,2]
[311432897,1705098643367,-150.12,0.00033,2]
[311432898,1705098643376,-150.12,0.00033,2]
[311432899,1705098643386,-150.12,0.00033,2]
[311432900,1705098643396,-150.12,0.00033,2]
[311432901,1705098643406,-150.12,0.00033,2]
[311432902,1705098643416,-150.12,0.00033,2]
[311432903,1705098643425,-150.12,0.00033,2]
[311432904,1705098643435,-150.12,0.00033,2]
[311432906,1705098643445,-150.12,0.00033,2]
[311432908,1705098643454,-150.12,0.00033,2]
[311432909,1705098643464,-150.12,0.00033,2]
[311432910,1705098643474,-150.12,0.00033,2]
[311432911,1705098643483,-150.12,0.00033,2]
[311432912,1705098643493,-150.12,0.00033,2]
[311432913,1705098643503,-150.12,0.00033,2]
[311432915,1705098643513,-150.12,0.00033,2]
[311432918,1705098643523,-150.12,0.00033,2]
[311432920,1705098643533,-150.12,0.00033,2]
[311432923,1705098643542,-150.12,0.00033,2]
[311432927,1705098643552,-150.12,0.00033,2]
[311432929,1705098643561,-150.12,0.00033,2]
[311432932,1705098643572,-150.12,0.00033,2]
[311432935,1705098643582,-150.12,0.00033,2]
[311432938,1705098643591,-150.12,0.00033,2]
[311432940,1705098643601,-150.12,0.00033,2]
[311432943,1705098643611,-150.12,0.00033,2]
[311432946,1705098643620,-150.12,0.00033,2]
[311432949,1705098643630,-150.12,0.00033,2]
[311432951,1705098643639,-150.12,0.00033,2]
[311432954,1705098643649,-150.12,0.00033,2]
[311432957,1705098643659,-150.12,0.00033,2]
[311432960,1705098643669,-150.12,0.00033,2]
[311432961,1705098643679,-150.12,0.00033,2]
[311432963,1705098643689,-150.12,0.00033,2]
[311432965,1705098643698,-150.12,0.00033,2]
[311432966,1705098643708,-150.12,0.00033,2]
[311432967,1705098643717,-150.12,0.00033,2]
[311432968,1705098643727,-717.28,0.00033303,2]
[311432969,1705098643737,-421.16,0.00033468,2]
[311432970,1705098643746,-726.69602173,0.000335,2]
[311432971,1705098643756,-5902.92300323,0.00033536,5]
[311432972,1705098643765,-3000.0,0.0003358,2]
[311432973,1705098643774,-153.84,0.0003379,2]
[311432974,1705098643783,-15416.24612239,0.00033888,10]
[311432975,1705098643793,-17550.20193886,0.00033888,10]
[311432976,1705098643802,-18738.66869352,0.00033888,10]
[311432977,1705098643811,-3017.48708494,0.00033888,10]
[311432978,1705098643824,-12264.05436183,0.00033888,10]
[311432979,1705098643833,-17222.06520386,0.00033888,10]
[311432980,1705098643842,-350.0,0.00033999,2]
[311432981,1705098643851,-500.0,0.00033999,2]
[311432982,1705098643861,-500.0,0.00033999,2]
[311432983,1705098643870,-500.0,0.00033999,2]
[311432984,1705098643879,-500.0,0.00033999,2]
[311432985,1705098643889,-500.0,0.00033999,2]
[311432986,1705098643898,-100000.0,0.00034,4]
[311432987,1705098643907,-300.0,0.00034,2]
[311432988,1705098643917,-500.0,0.00034,2]
[311432989,1705098643926,-500.0,0.00034,2]
[311432990,1705098643935,-500.0,0.00034,2]
[311432991,1705098643945,-500.0,0.00034,2]
[311432992,1705098643955,-500.0,0.00034,2]
[311432993,1705098643966,-500.0,0.00034,2]
[311432994,1705098643976,-500.0,0.00034,2]
[311432995,1705098643986,-500.0,0.00034,2]
[311432996,1705098643995,-500.0,0.00034,2]
[311432997,1705098644004,-500.0,0.00034,2]
[311432998,1705098644014,-500.0,0.00034,2]
[311432999,1705098644023,-500.0,0.00034,2]
[311433000,1705098644033,-500.0,0.00034,2]
[311433001,1705098644043,-500.0,0.00034,2]
[311433002,1705098644054,-500.0,0.00034,2]
[311433003,1705098644066,-500.0,0.00034,2]
[311433004,1705098644075,-500.0,0.00034,2]
[311433005,1705098644085,-500.0,0.00034,2]
[311433006,1705098644094,-155.0,0.00034,2]
[311433007,1705098644104,-1000.0,0.00034,4]
[311433008,1705098644113,-605.42771288,0.00034,4]
[311433009,1705098644128,-196.97399829,0.00034,4]
[311433010,1705098644139,-1401.02927626,0.00034,2]
[311433011,1705098644330,-21757.66760797,0.00034,2]
[311433012,1705098644377,-837.65187217,0.00034,2]
[311433013,1705098644388,-1721.25017463,0.00034,2]
[311433014,1705098644399,-916.10236923,0.00034,2]
[311433015,1705098644411,-1106.28766715,0.00034,2]
[311433016,1705098644423,-1730.09032876,0.00034,2]
[311433017,1705098644435,-1114.62203881,0.00034,2]
[311433018,1705098644447,-42378.99999999,0.00034,2]
[311433019,1705098645583,-590.08011016,0.00034,2]
[311433021,1705098645752,-3314.07430842,0.00034,2]
[311433023,1705098645762,-26143.51962363,0.00034,2]
[311433025,1705098645773,-5291.34939869,0.00034,2]
[311433027,1705098645784,-940.6822799,0.00034,2]
[311433029,1705098645795,-281.58631847,0.00034,2]
[311433031,1705098645807,-832.7,0.00034,2]
[311433032,1705098645822,-915.74877492,0.00034,2]
[311433035,1705098645846,-281.28456089,0.00034,2]
[311433036,1705098645857,-391.1015365,0.00034,2]
[311433037,1705098645868,-417.65,0.00034,2]
[311433038,1705098645879,-4282.1472,0.00034,2]
[311433041,1705098645890,-1236.26441188,0.00034,2]
[311433042,1705098645901,-640.64962494,0.00034,2]
[311433045,1705098645913,-2560.89551778,0.00034,2]
[311433047,1705098645923,-4162.3612,0.00034,2]
[311433049,1705098645934,-2457.99999999,0.00034,2]
[311433051,1705098645946,-255.29630268,0.00034,2]
[311433054,1705098645970,-318.957995,0.00034,2]
[311433058,1705098645982,-1072.01781389,0.00034,2]
[311433061,1705098645994,-1068.52842727,0.00034,2]
[311433065,1705098646005,-12532.24890902,0.00034,2]
[311433068,1705098646014,-1000.0,0.00034,2]
[311433070,1705098646023,-185.67209156,0.00034098,2]
[311433074,1705098646035,-19814.32790844,0.00034098,2]
[311433077,1705098646044,-205.0,0.00034188,14]
[311433080,1705098646054,-872.77630199,0.00034198,4]
[311433082,1705098646065,-4000.0,0.000342,4]
[311433083,1705098646075,-150.0,0.00034212,2]
[311433085,1705098646084,-293.92,0.00034212,2]
[311433087,1705098646094,-417.82,0.00034212,2]
[311433089,1705098646103,-150.0,0.00034212,2]
[311433091,1705098646112,-150.0,0.00034212,2]
[311433093,1705098646122,-239.35,0.00034212,2]
[311433095,1705098646131,-150.0,0.00034212,2]
[311433097,1705098646140,-389.33,0.00034212,2]
[311433099,1705098646149,-293.92,0.00034212,2]
[311433101,1705098646158,-150.0,0.00034212,2]
[311433103,1705098646167,-150.0,0.00034212,2]
[311433105,1705098646176,-150.0,0.00034212,2]
[311433107,1705098646186,-314.16,0.00034212,2]
[311433109,1705098646195,-417.82,0.00034212,2]
[311433111,1705098646205,-150.0,0.00034212,2]
[311433113,1705098646214,-408.0,0.00034212,2]
[311433116,1705098646225,-150.0,0.00034212,2]
[311433117,1705098646235,-392.39578958,0.00034212,2]
[311433129,1705098646338,-25.42421042,0.00034212,2]
[311433131,1705098646347,-150.0,0.00034212,2]
[311433133,1705098646356,-150.0,0.00034212,2]
[311433135,1705098646365,-314.16,0.00034212,2]
[311433137,1705098646374,-293.92,0.00034212,2]
[311433138,1705098646384,-150.0,0.00034212,2]
[311433139,1705098646393,-717.28,0.00034281,2]
[311433140,1705098646402,-152.0,0.00034342,3]
[311433141,1705098646412,-1945.30125679,0.00034443,2]
[311433142,1705098646423,-326.29823559,0.00034443,2]
[311433143,1705098646432,-957.02679518,0.00034445,6]
[311433144,1705098646444,-402.36914812,0.00034445,6]
[311433145,1705098647137,-862.71007413,0.000294,2]
[311433146,1705098647147,-150.01,0.00031798,2]
[311433147,1705098647156,-3292.32224499,0.00031798,2]
[311433148,1705098647165,-150.12,0.00033,2]
[311433149,1705098647174,-150.12,0.00033,2]
[311433150,1705098647183,-150.12,0.00033,2]
[311433151,1705098647193,-4543.52705993,0.00034445,6]
[311433152,1705098647203,-480.04342,0.0003452,2]
[311433153,1705098647212,-640.057894,0.0003452,2]
[311433154,1705098647221,-8024.67,0.00034521,2]
[311433155,1705098647233,-151.0,0.00034614,7]
[311433156,1705098647242,-180.0,0.00034658,2]
[311433157,1705098647251,-170.8080721,0.00034701,4]
[311433158,1705098647260,-153.84,0.00034703,2]
[311433159,1705098647269,-235.73,0.00034703,2]
[311433160,1705098647279,-720.06513,0.00034794,2]
[311433161,1705098647288,-960.086841,0.00034794,2]
[311433162,1705098647297,-500.0,0.000349,2]
[311433163,1705098647306,-500.0,0.000349,2]
[311433164,1705098647316,-500.0,0.000349,2]
[311433165,1705098647325,-500.0,0.000349,2]
[311433166,1705098647334,-500.0,0.000349,2]
[311433167,1705098647343,-500.0,0.000349,2]
[311433168,1705098647352,-500.0,0.000349,2]
[311433169,1705098647361,-500.0,0.000349,2]
[311433170,1705098647370,-500.0,0.000349,2]
[311433171,1705098647379,-500.0,0.000349,2]
[311433172,1705098647388,-500.0,0.000349,2]
[311433173,1705098647397,-500.0,0.000349,2]
[311433174,1705098647407,-500.0,0.000349,2]
[311433175,1705098647416,-500.0,0.000349,2]
[311433176,1705098647425,-500.0,0.000349,2]
[311433177,1705098647434,-500.0,0.000349,2]
[311433178,1705098647442,-500.0,0.000349,2]
[311433179,1705098647451,-500.0,0.000349,2]
[311433180,1705098647461,-500.0,0.000349,2]
[311433181,1705098647470,-500.0,0.000349,2]
[311433182,1705098647480,-500.0,0.000349,2]
[311433183,1705098647490,-500.0,0.000349,2]
[311433184,1705098647500,-500.0,0.000349,2]
[311433185,1705098647683,-500.0,0.000349,2]
[311433186,1705098647708,-500.0,0.000349,2]
[311433187,1705098647717,-500.0,0.000349,2]
[311433188,1705098647727,-500.0,0.000349,2]
[311433189,1705098647738,-500.0,0.000349,2]
[311433190,1705098647749,-500.0,0.000349,2]
[311433191,1705098647759,-500.0,0.000349,2]
[311433192,1705098647769,-500.0,0.000349,2]
[311433193,1705098647779,-200.0,0.000349,2]
[311433194,1705098647788,-500.0,0.000349,2]
[311433195,1705098647797,-500.0,0.000349,2]
[311433196,1705098647807,-500.0,0.000349,2]
[311433197,1705098647818,-500.0,0.000349,2]
[311433198,1705098647827,-500.0,0.000349,2]
[311433199,1705098647836,-500.0,0.000349,2]
[311433200,1705098647846,-500.0,0.000349,2]
[311433201,1705098647855,-8949.23110012,0.000349,4]
[311433202,1705098647865,-1984.24446723,0.000349,2]
[311433203,1705098647874,-1984.24446704,0.000349,2]
[311433204,1705098647883,-1984.24446704,0.000349,2]
[311433205,1705098647892,-1984.24446704,0.000349,2]
[311433206,1705098647902,-1984.24446704,0.000349,2]
[311433207,1705098647912,-1984.24446704,0.000349,2]
[311433208,1705098647921,-1984.24446704,0.000349,2]
[311433209,1705098647930,-1984.24446704,0.000349,2]
[311433210,1705098647939,-960.086841,0.00034931,2]
[311433211,1705098647949,-1280.115788,0.00034931,2]
[311433212,1705098647958,-509.38483916,0.0003498,3]
[311433213,1705098647969,-500.0,0.00034999,2]
[311433215,1705098647979,-100000.0,0.00035,5]
[311433216,1705098647988,-1804.81442942,0.00035,4]
[311433218,1705098647998,-255.47708732,0.00035,4]
[311433220,1705098648007,-5000.0,0.00035,2]
[311433223,1705098648018,-2500.0,0.00035,2]
[311433224,1705098648027,-16426.79456655,0.00035,2]
[311433225,1705098648036,-3494.77765478,0.00035,16]
[311433226,1705098648046,-520.40639985,0.00035,4]
[311433227,1705098648055,-3828.04285491,0.00035,2]
[311433228,1705098648065,-155.0,0.00035,2]
[311433229,1705098648074,-445.82332473,0.00035,4]
[311433230,1705098648084,-619.27875171,0.00035,4]
[311433231,1705098648093,-185.56735423,0.00035,4]
[311433232,1705098648102,-167.289,0.00035,7]
[311433233,1705098648112,-342.76338771,0.00035,4]
[311433234,1705098648121,-2520.0,0.00035,10]
[311433235,1705098648130,-200.0,0.00035,5]
[311433236,1705098648139,-1261.5058203,0.00035,4]
[311433237,1705098648148,-3000.0,0.00035,8]
[311433238,1705098648157,-4163.5451795,0.00035,2]
[311433239,1705098648167,-503.729819,0.00035,3]
[311433240,1705098648176,-600.0,0.00035,3]
[311433241,1705098648185,-1000.0,0.00035,2]
[311433242,1705098648194,-162.67431202,0.00035,2]
[311433243,1705098648203,-162.67431202,0.00035,2]
[311433244,1705098648212,-162.67431202,0.00035,2]
[311433245,1705098648221,-162.67431202,0.00035,2]
[311433246,1705098648230,-162.67431202,0.00035,2]
[311433247,1705098648239,-162.67431202,0.00035,2]
[311433248,1705098648249,-162.67431202,0.00035,2]
[311433249,1705098648258,-162.67431202,0.00035,2]
[311433250,1705098648267,-162.67431202,0.00035,2]
[311433251,1705098648276,-162.67431202,0.00035,2]
[311433252,1705098648285,-162.67431202,0.00035,2]
[311433253,1705098648294,-162.67431202,0.00035,2]
[311433254,1705098648304,-162.67431202,0.00035,2]
[311433255,1705098648313,-162.67431202,0.00035,2]
[311433256,1705098648324,-162.67431202,0.00035,2]
[311433257,1705098648333,-162.67431202,0.00035,2]
[311433258,1705098648342,-162.67431202,0.00035,2]
[311433259,1705098648352,-162.67431202,0.00035,2]
[311433260,1705098648361,-162.67431202,0.00035,2]
[311433261,1705098648370,-162.67431202,0.00035,2]
[311433262,1705098648379,-162.67431202,0.00035,2]
[311433263,1705098648388,-162.67431202,0.00035,2]
[311433264,1705098648400,-162.67431202,0.00035,2]
[311433265,1705098648409,-162.67431202,0.00035,2]
[311433266,1705098648419,-162.67431202,0.00035,2]
[311433267,1705098648428,-162.67431202,0.00035,2]
[311433268,1705098648437,-162.67431202,0.00035,2]
[311433269,1705098648447,-162.67431202,0.00035,2]
[311433270,1705098648458,-162.67431202,0.00035,2]
[311433271,1705098648467,-162.67431202,0.00035,2]
[311433272,1705098648477,-162.67431202,0.00035,2]
[311433273,1705098648486,-162.67431202,0.00035,2]
[311433274,1705098648495,-162.67431202,0.00035,2]
[311433275,1705098648505,-162.67431202,0.00035,2]
[311433276,1705098648514,-162.67431202,0.00035,2]
[311433277,1705098648523,-162.67431202,0.00035,2]
[311433278,1705098648533,-162.67431202,0.00035,2]
[311433279,1705098648542,-162.67431202,0.00035,2]
[311433280,1705098648551,-162.67431202,0.00035,2]
[311433281,1705098648561,-162.67431202,0.00035,2]
[311433282,1705098648572,-162.67431202,0.00035,2]
[311433283,1705098648582,-162.67431202,0.00035,2]
[311433284,1705098648591,-162.67431202,0.00035,2]
[311433285,1705098648601,-162.67431202,0.00035,2]
[311433286,1705098648610,-162.67431202,0.00035,2]
[311433287,1705098648620,-162.67431202,0.00035,2]
[311433288,1705098648629,-162.67431202,0.00035,2]
[311433289,1705098648638,-162.67431202,0.00035,2]
[311433290,1705098648647,-162.67431202,0.00035,2]
[311433291,1705098648657,-19122.4943609,0.00035,2]
[311433292,1705098648666,-2500.0,0.00035,10]
[311433293,1705098648675,-3000.0,0.0003501,8]
[311433294,1705098648684,-450.0,0.0003502,3]
[311433295,1705098648694,-3000.0,0.0003502,8]
[311433296,1705098648703,-3000.0,0.0003503,8]
[311433297,1705098648712,-408.0,0.00035034,2]
[311433298,1705098648721,-150.0,0.00035034,2]
[311433299,1705098648730,-417.82,0.00035034,2]
[311433300,1705098648742,-293.92,0.00035034,2]
[311433301,1705098648751,-314.16,0.00035034,2]
[311433302,1705098648760,-417.82,0.00035034,2]
[311433303,1705098648769,-150.0,0.00035034,2]
[311433304,1705098648778,-408.0,0.00035034,2]
[311433305,1705098648788,-314.16,0.00035034,2]
[311433306,1705098648797,-293.92,0.00035034,2]
[311433307,1705098648806,-408.0,0.00035034,2]
[311433308,1705098648816,-314.16,0.00035034,2]
[311433309,1705098648825,-417.82,0.00035034,2]
[311433310,1705098648834,-586.44,0.00035034,2]
[311433311,1705098648844,-408.0,0.00035034,2]
[311433312,1705098648854,-417.82,0.00035034,2]
[311433313,1705098648863,-314.16,0.00035034,2]
[311433314,1705098648873,-408.0,0.00035034,2]
[311433315,1705098648882,-417.82,0.00035034,2]
[311433316,1705098648891,-314.16,0.00035034,2]
[311433317,1705098648900,-408.0,0.00035034,2]
[311433318,1705098648911,-417.82,0.00035034,2]
[311433319,1705098648920,-234.45,0.00035034,2]
[311433320,1705098648929,-408.0,0.00035034,2]
[311433321,1705098648938,-417.82,0.00035034,2]
[311433322,1705098648948,-408.0,0.00035034,2]
[311433323,1705098648957,-408.0,0.00035034,2]
[311433324,1705098648966,-405.47,0.00035034,2]
[311433325,1705098648979,-417.82,0.00035034,2]
[311433326,1705098648988,-417.82,0.00035034,2]
[311433327,1705098648997,-415.09,0.00035034,2]
[311433328,1705098649006,-5199.837552,0.0003504,9]
[311433329,1705098649016,-632.29842341,0.00035047,7]
[311433330,1705098649025,-187.82117888,0.00035052,7]
[311433331,1705098649034,-1200.108551,0.00035068,2]
[311433332,1705098649043,-1600.144735,0.00035068,2]
[311433333,1705098649053,-717.28,0.00035259,2]
[311433334,1705098649063,-2115.78436096,0.00035296,2]
[311433335,1705098649075,-2808.8971858,0.000353,2]
[311433336,1705098649084,-151.0,0.00035321,4]
[311433337,1705098649093,-1680.151971,0.00035342,2]
[311433338,1705098649103,-2240.202629,0.00035342,2]
[311433339,1705098649112,-500.0,0.00035346,2]
[311433340,1705098649121,-5902.92300323,0.00035355,8]
[311433341,1705098649130,-150.0,0.00035456,2]
[311433343,1705098649139,-150.0,0.00035456,2]
[311433344,1705098649149,-205.0,0.00035546,16]
[311433346,1705098649159,-1984.24446704,0.00035563,2]
[311433348,1705098649168,-1000.0,0.000356,2]
[311433350,1705098649177,-750.0,0.000356,2]
[311433352,1705098649186,-153.84,0.00035616,2]
[311433354,1705098649195,-150.0,0.00035647,2]
[311433356,1705098649204,-150.0,0.00035647,2]
[311433358,1705098649213,-150.0,0.00035647,2]
[311433360,1705098649222,-150.0,0.00035647,2]
[311433362,1705098649232,-150.0,0.00035647,2]
[311433364,1705098649241,-300.0,0.00035647,2]
[311433366,1705098649250,-165.0,0.00035698,2]
[311433368,1705098649259,-1996.2,0.000357,7]
[311433370,1705098649268,-4950.76,0.000357,7]
[311433372,1705098649277,-5809.21,0.000357,7]
[311433374,1705098649286,-421.16,0.00035732,2]
[311433376,1705098649295,-8024.67,0.00035798,2]
[311433378,1705098649304,-729.17819055,0.00035996,4]
[311433380,1705098649314,-811.19032181,0.00035996,4]
[311433382,1705098649326,-688.37714424,0.00035998,2]
[311433384,1705098649335,-459.95325882,0.00035998,4]
[311433387,1705098649348,-1100.24936996,0.00035999,10]
[311433389,1705098649357,-100000.0,0.00036,6]
[311433390,1705098649367,-51410.28188238,0.00036,4]
[311433392,1705098649376,-1660.95673049,0.00036,4]
[311433394,1705098649385,-2046.588713,0.00036,2]
[311433396,1705098649394,-1616.89,0.00036,2]
[311433398,1705098649403,-1000.0,0.00036,2]
[311433400,1705098649412,-44802.3673558,0.00036012,2]
[311433402,1705098649421,-2733.3595118,0.00036012,2]
[311433404,1705098649431,-1298.9055662,0.00036037,2]
[311433406,1705098649440,-187.28075883,0.00036037,2]
[311433408,1705098649449,-151.0,0.00036041,2]
[311433410,1705098649458,-24328.59876229,0.00036089,2]
[311433412,1705098649468,-24328.59876227,0.00036089,2]
[311433414,1705098649477,-24328.59876227,0.00036089,2]
[311433416,1705098649486,-24328.59876227,0.00036089,2]
[311433418,1705098649495,-24328.59876227,0.00036089,2]
[311433420,1705098649504,-24328.59876227,0.00036089,2]
[311433422,1705098649512,-1097.59500121,0.000362,2]
[311433424,1705098649521,-1996.2,0.000362,7]
[311433426,1705098649530,-4950.76,0.000362,7]
[311433428,1705098649539,-5809.21,0.000362,7]
[311433430,1705098649549,-827.09287132,0.00036229,8]
[311433432,1705098649558,-5902.92300323,0.00036264,9]
[311433434,1705098649570,-1000.0,0.00036367,10]
[311433436,1705098649579,-152.286792,0.00036457,2]
[311433437,1705098649589,-829.570304,0.00036457,2]
[311433438,1705098649599,-182.472387,0.00036457,2]
[311433439,1705098649608,-174.159976,0.00036457,2]
[311433441,1705098649617,-182.472386,0.00036457,2]
[311433443,1705098649627,-2488.710914,0.00036457,2]
[311433445,1705098649636,-274.116226,0.00036457,2]
[311433447,1705098649646,-3995.8,0.00036457,2]
[311433449,1705098649655,-392.679316,0.00036457,2]
[311433451,1705098649664,-222.061441,0.00036457,2]
[311433453,1705098649673,-392.679315,0.00036457,2]
[311433455,1705098649682,-222.061441,0.00036457,2]
[311433457,1705098649691,-24328.59876227,0.00036506,2]
[311433459,1705098649700,-153.84,0.0003653,2]
[311433461,1705098649709,-1000.0,0.00036591,10]
[311433463,1705098649718,-1000.0,0.00036591,10]
[311433465,1705098649728,-1000.0,0.00036591,10]
[311433466,1705098649738,-237.01836557,0.00036591,8]
[311433469,1705098649749,-269.1464762,0.00036591,6]
[311433470,1705098649758,-223.28419797,0.00036591,6]
[311433473,1705098649767,-363.4471014,0.00036591,8]
[311433475,1705098649777,-176.46718149,0.00036591,3]
[311433476,1705098649786,-251.07008351,0.00036591,3]
[311433478,1705098649795,-548.46515275,0.00036591,8]
[311433481,1705098649804,-274.23257637,0.00036591,8]
[311433483,1705098649814,-1000.0,0.00036591,10]
[311433485,1705098649826,-168.93877319,0.00036591,3]
[311433487,1705098649836,-1678.89409743,0.00036591,8]
[311433489,1705098649846,-1996.2,0.000366,7]
[311433491,1705098649855,-4950.76,0.000366,7]
[311433492,1705098649864,-5809.21,0.000366,7]
[311433493,1705098649873,-741.15,0.00036613,15]
[311433494,1705098649883,-3876.31143968,0.000367,4]
[311433495,1705098649892,-150.4168097,0.0003677,2]
[311433496,1705098649901,-160.00245007,0.00036887,6]
[311433497,1705098649911,-160.00245007,0.00036887,3]
[311433498,1705098649921,-160.00245007,0.00036887,4]
[311433499,1705098649930,-160.00245007,0.00036887,2]
[311433500,1705098649940,-205.0,0.00036905,18]
[311433501,1705098649950,-829.570304,0.00036913,2]
[311433502,1705098649962,-2488.710914,0.00036913,2]
[311433503,1705098649971,-274.116226,0.00036913,2]
[311433504,1705098649981,-3995.8,0.00036913,2]
[311433505,1705098649990,-392.679316,0.00036913,2]
[311433506,1705098649999,-222.061441,0.00036913,2]
[311433507,1705098650009,-392.679315,0.00036913,2]
[311433508,1705098650018,-222.061441,0.00036913,2]
[311433509,1705098650028,-100000.0,0.00037,7]
[311433510,1705098650037,-309.52299924,0.00037,4]
[311433511,1705098650048,-5000.0,0.00037,3]
[311433512,1705098650058,-8000.0,0.00037,2]
[311433513,1705098650069,-2000.0,0.00037,2]